[Event "Titled Tuesday Blitz October 25 Late 2022"]
[White "Suder, Jakub"]
[Black "Kamsky, Gata"]
[WhiteFideId "1195310"]
[BlackFideId "2000024"]
[WhiteElo "2174"]
[BlackElo "2666"]
[Result "1/2-1/2"]
[Round "04"]
[TimeControl "180+1"]
[Date "2022.10.26"]
[WhiteClock "0:00:08"]
[BlackClock "0:00:03"]

1. d4 {[%clk 0:03:00]}  g6 {[%clk 0:02:59]} 2. c4 {[%clk 0:03:00]}  Bg7 {[%clk 0:02:59]} 3. Nc3 {[%clk 0:03:01]}  d6 {[%clk 0:02:59]} 4. e4 {[%clk 0:03:01]}  Nf6 {[%clk 0:03:00]} 5. Nf3 {[%clk 0:03:01]}  O-O {[%clk 0:02:59]} 6. Be2 {[%clk 0:03:01]}  e5 {[%clk 0:02:59]} 7. O-O {[%clk 0:03:00]}  c6 {[%clk 0:02:59]} 8. d5 {[%clk 0:02:54]}  c5 {[%clk 0:02:58]} 9. Ne1 {[%clk 0:02:53]}  Ne8 {[%clk 0:02:54]} 10. a3 {[%clk 0:02:44]}  f5 {[%clk 0:02:53]} 11. b4 {[%clk 0:02:44]}  Na6 {[%clk 0:02:52]} 12. Nd3 {[%clk 0:02:41]}  b6 {[%clk 0:02:25]} 13. bxc5 {[%clk 0:02:34]}  Nxc5 {[%clk 0:02:13]} 14. Nxc5 {[%clk 0:02:31]}  dxc5 {[%clk 0:02:13]} 15. exf5 {[%clk 0:02:05]}  gxf5 {[%clk 0:02:11]} 16. a4 {[%clk 0:01:55]}  e4 {[%clk 0:02:05]} 17. Bb2 {[%clk 0:01:52]}  Nd6 {[%clk 0:02:05]} 18. Qc2 {[%clk 0:01:46]}  f4 {[%clk 0:01:49]} 19. f3 {[%clk 0:01:21]}  e3 {[%clk 0:01:39]} 20. Nb5 {[%clk 0:01:16]}  Bf5 {[%clk 0:01:35]} 21. Qb3 {[%clk 0:01:15]}  Rf7 {[%clk 0:01:24]} 22. Rad1 {[%clk 0:01:08]}  a6 {[%clk 0:01:14]} 23. Nxd6 {[%clk 0:01:07]}  Qxd6 {[%clk 0:01:14]} 24. Bxg7 {[%clk 0:01:05]}  Rxg7 {[%clk 0:01:14]} 25. Kh1 {[%clk 0:01:05]}  h5 {[%clk 0:01:07]} 26. Bd3 {[%clk 0:00:57]}  Rf8 {[%clk 0:00:57]} 27. Bxf5 {[%clk 0:00:52]}  Rxf5 {[%clk 0:00:57]} 28. Rg1 {[%clk 0:00:50]}  h4 {[%clk 0:00:57]} 29. Qd3 {[%clk 0:00:36]}  Re5 {[%clk 0:00:53]} 30. Rde1 {[%clk 0:00:32]}  Qd7 {[%clk 0:00:39]} 31. Qb3 {[%clk 0:00:27]}  Rg6 {[%clk 0:00:37]} 32. Re2 {[%clk 0:00:26]}  Reg5 {[%clk 0:00:33]} 33. Ree1 {[%clk 0:00:23]}  Kh7 {[%clk 0:00:32]} 34. Qb1 {[%clk 0:00:21]}  Kh6 {[%clk 0:00:31]} 35. Qe4 {[%clk 0:00:18]}  Qf5 {[%clk 0:00:27]} 36. Qe8 {[%clk 0:00:17]}  Kh7 {[%clk 0:00:26]} 37. a5 {[%clk 0:00:16]}  bxa5 {[%clk 0:00:23]} 38. Rb1 {[%clk 0:00:14]}  Rg8 {[%clk 0:00:18]} 39. Rb7+ {[%clk 0:00:14]}  Kh8 {[%clk 0:00:15]} 40. Qe7 {[%clk 0:00:10]}  h3 {[%clk 0:00:14]} 41. g4 {[%clk 0:00:09]}  fxg3 {[%clk 0:00:13]} 42. hxg3 {[%clk 0:00:10]}  Qxf3+ {[%clk 0:00:13]} 43. Kh2 {[%clk 0:00:09]}  Qf2+ {[%clk 0:00:13]} 44. Kh1 {[%clk 0:00:08]}  Qf3+ {[%clk 0:00:10]} 45. Kh2 {[%clk 0:00:08]}  Qf2+ {[%clk 0:00:06]} 46. Kh1 {[%clk 0:00:08]}  Qf3+ {[%clk 0:00:03]} 1/2-1/2


[Site "https://www.chess.com"]

[Event "Titled Tuesday Blitz October 25 Late 2022"]
[White "Svane, Rasmus"]
[Black "Wieczorek, Oskar"]
[WhiteFideId "4657101"]
[BlackFideId "1133950"]
[WhiteElo "2674"]
[BlackElo "2404"]
[Result "1-0"]
[Round "04"]
[TimeControl "180+1"]
[Date "2022.10.26"]
[WhiteClock "0:00:17"]
[BlackClock "0:00:06"]

1. Nf3 {[%clk 0:03:00]}  Nf6 {[%clk 0:02:56]} 2. g3 {[%clk 0:03:01]}  g6 {[%clk 0:02:55]} 3. Bg2 {[%clk 0:03:01]}  Bg7 {[%clk 0:02:56]} 4. O-O {[%clk 0:03:02]}  O-O {[%clk 0:02:57]} 5. d4 {[%clk 0:03:03]}  d5 {[%clk 0:02:57]} 6. c4 {[%clk 0:03:02]}  c6 {[%clk 0:02:58]} 7. Qb3 {[%clk 0:03:02]}  a5 {[%clk 0:02:57]} 8. Rd1 {[%clk 0:03:02]}  a4 {[%clk 0:02:58]} 9. Qb4 {[%clk 0:03:03]}  dxc4 {[%clk 0:02:56]} 10. Qxc4 {[%clk 0:03:04]}  b5 {[%clk 0:02:57]} 11. Qc3 {[%clk 0:02:55]}  Be6 {[%clk 0:02:43]} 12. Qe1 {[%clk 0:02:44]}  Qb6 {[%clk 0:02:35]} 13. e4 {[%clk 0:02:42]}  Rd8 {[%clk 0:02:09]} 14. h3 {[%clk 0:02:40]}  Na6 {[%clk 0:02:03]} 15. Be3 {[%clk 0:02:23]}  Qc7 {[%clk 0:01:53]} 16. Nbd2 {[%clk 0:02:21]}  Nb4 {[%clk 0:01:51]} 17. Qe2 {[%clk 0:02:08]}  Nc2 {[%clk 0:01:31]} 18. Rac1 {[%clk 0:01:59]}  Nxe3 {[%clk 0:01:30]} 19. Qxe3 {[%clk 0:01:43]}  Bxa2 {[%clk 0:01:14]} 20. d5 {[%clk 0:01:44]}  Nxd5 {[%clk 0:01:06]} 21. exd5 {[%clk 0:01:43]}  Bxd5 {[%clk 0:01:06]} 22. Qa3 {[%clk 0:00:37]}  Qa5 {[%clk 0:01:07]} 23. b4 {[%clk 0:00:32]}  axb3 {[%clk 0:00:56]} 24. Qxa5 {[%clk 0:00:33]}  Rxa5 {[%clk 0:00:57]} 25. Nxb3 {[%clk 0:00:33]}  Ra3 {[%clk 0:00:58]} 26. Nbd4 {[%clk 0:00:25]}  Rd6 {[%clk 0:00:48]} 27. Nc2 {[%clk 0:00:17]}  Rc3 {[%clk 0:00:36]} 28. Ne3 {[%clk 0:00:16]}  Rxc1 {[%clk 0:00:24]} 29. Rxc1 {[%clk 0:00:17]}  Be6 {[%clk 0:00:13]} 30. Ng5 {[%clk 0:00:17]}  Bd7 {[%clk 0:00:14]} 31. Ne4 {[%clk 0:00:17]}  Rd4 {[%clk 0:00:14]} 32. Nc5 {[%clk 0:00:17]}  Be8 {[%clk 0:00:15]} 33. Nb3 {[%clk 0:00:17]}  Rb4 {[%clk 0:00:14]} 34. Na5 {[%clk 0:00:17]}  Bb2 {[%clk 0:00:12]} 35. Rc2 {[%clk 0:00:17]}  c5 {[%clk 0:00:05]} 36. Rxc5 {[%clk 0:00:16]}  Bd4 {[%clk 0:00:06]} 37. Rc8 {[%clk 0:00:17]}  Kf8 {[%clk 0:00:06]} 38. Bc6 {[%clk 0:00:17]} 1-0


[Site "https://www.chess.com"]

[Event "Titled Tuesday Blitz October 25 Late 2022"]
[White "Thomforde-Toates, Noah"]
[Black "Makaraci, Tunahan"]
[WhiteFideId "30951992"]
[BlackFideId "6356559"]
[WhiteElo "2659"]
[BlackElo "2175"]
[Result "1-0"]
[Round "04"]
[TimeControl "180+1"]
[Date "2022.10.26"]
[WhiteClock "0:00:31"]
[BlackClock "0:00:25"]

1. d4 {[%clk 0:03:00]}  d5 {[%clk 0:03:00]} 2. Nc3 {[%clk 0:03:01]}  c5 {[%clk 0:02:59]} 3. e4 {[%clk 0:02:58]}  Nf6 {[%clk 0:02:53]} 4. exd5 {[%clk 0:02:54]}  Nxd5 {[%clk 0:02:37]} 5. Nf3 {[%clk 0:02:52]}  Nc6 {[%clk 0:02:35]} 6. Bc4 {[%clk 0:02:23]}  Nb6 {[%clk 0:02:35]} 7. Bb5 {[%clk 0:02:16]}  cxd4 {[%clk 0:02:26]} 8. Nxd4 {[%clk 0:02:09]}  Bd7 {[%clk 0:02:25]} 9. Be3 {[%clk 0:02:05]}  e6 {[%clk 0:02:21]} 10. O-O {[%clk 0:02:02]}  Be7 {[%clk 0:02:19]} 11. Nxc6 {[%clk 0:01:56]}  Bxc6 {[%clk 0:02:19]} 12. Qg4 {[%clk 0:01:51]}  O-O {[%clk 0:02:13]} 13. Rad1 {[%clk 0:01:48]}  Nd5 {[%clk 0:02:02]} 14. Nxd5 {[%clk 0:01:46]}  exd5 {[%clk 0:02:03]} 15. Bd3 {[%clk 0:01:45]}  Bf6 {[%clk 0:01:57]} 16. c3 {[%clk 0:01:41]}  Re8 {[%clk 0:01:50]} 17. Rfe1 {[%clk 0:01:38]}  Bd7 {[%clk 0:01:23]} 18. Qh5 {[%clk 0:01:33]}  g6 {[%clk 0:01:23]} 19. Qxd5 {[%clk 0:01:28]}  Bc6 {[%clk 0:01:23]} 20. Qxd8 {[%clk 0:01:27]}  Raxd8 {[%clk 0:01:23]} 21. Bc2 {[%clk 0:01:16]}  b6 {[%clk 0:01:21]} 22. a4 {[%clk 0:01:10]}  Kg7 {[%clk 0:01:15]} 23. Kf1 {[%clk 0:01:07]}  h5 {[%clk 0:01:13]} 24. Bf4 {[%clk 0:01:01]}  Rxd1 {[%clk 0:01:10]} 25. Rxd1 {[%clk 0:00:59]}  g5 {[%clk 0:01:10]} 26. Be3 {[%clk 0:00:57]}  h4 {[%clk 0:01:09]} 27. g3 {[%clk 0:00:53]}  hxg3 {[%clk 0:01:08]} 28. hxg3 {[%clk 0:00:49]}  Bf3 {[%clk 0:01:06]} 29. Rd6 {[%clk 0:00:46]}  Be5 {[%clk 0:00:46]} 30. Rd7 {[%clk 0:00:43]}  Bxg3 {[%clk 0:00:41]} 31. Bxg5 {[%clk 0:00:32]}  Bb8 {[%clk 0:00:29]} 32. Be3 {[%clk 0:00:31]}  Rh8 {[%clk 0:00:25]} 33. Bd4+ {[%clk 0:00:31]} 1-0


[Site "https://www.chess.com"]

[Event "Titled Tuesday Blitz October 25 Late 2022"]
[White "Tomiello, Lucas Costamilan"]
[Black "Stoyanov, Tsvetan"]
[WhiteFideId "22701940"]
[BlackFideId "2917173"]
[WhiteElo "2085"]
[BlackElo "2349"]
[Result "0-1"]
[Round "04"]
[TimeControl "180+1"]
[Date "2022.10.26"]
[WhiteClock "0:00:57"]
[BlackClock "0:01:20"]

1. e4 {[%clk 0:03:00]}  c5 {[%clk 0:03:00]} 2. Nf3 {[%clk 0:03:01]}  d6 {[%clk 0:03:00]} 3. d4 {[%clk 0:03:01]}  cxd4 {[%clk 0:03:01]} 4. Nxd4 {[%clk 0:03:02]}  Nf6 {[%clk 0:03:01]} 5. Nc3 {[%clk 0:03:02]}  a6 {[%clk 0:03:02]} 6. Be2 {[%clk 0:03:00]}  e5 {[%clk 0:03:02]} 7. Nb3 {[%clk 0:03:00]}  Be7 {[%clk 0:03:01]} 8. Be3 {[%clk 0:03:00]}  Be6 {[%clk 0:03:01]} 9. Nd5 {[%clk 0:02:59]}  Nbd7 {[%clk 0:02:55]} 10. Qd3 {[%clk 0:02:58]}  Bxd5 {[%clk 0:02:43]} 11. exd5 {[%clk 0:02:59]}  O-O {[%clk 0:02:44]} 12. c4 {[%clk 0:02:54]}  a5 {[%clk 0:02:39]} 13. a4 {[%clk 0:02:50]}  Rc8 {[%clk 0:02:35]} 14. g4 {[%clk 0:02:35]}  e4 {[%clk 0:02:32]} 15. Qd4 {[%clk 0:02:23]}  Ne5 {[%clk 0:02:25]} 16. g5 {[%clk 0:02:10]}  Nfd7 {[%clk 0:02:21]} 17. h4 {[%clk 0:02:09]}  Rxc4 {[%clk 0:02:17]} 18. Qa7 {[%clk 0:01:53]}  Rb4 {[%clk 0:02:09]} 19. Nxa5 {[%clk 0:01:46]}  Rxb2 {[%clk 0:01:41]} 20. Nxb7 {[%clk 0:01:07]}  Qc7 {[%clk 0:01:37]} 21. Na5 {[%clk 0:01:03]}  Qc3+ {[%clk 0:01:28]} 22. Kf1 {[%clk 0:01:02]}  Rxe2 {[%clk 0:01:21]} 23. Kxe2 {[%clk 0:00:57]}  Qd3+ {[%clk 0:01:20]} 0-1


[Site "https://www.chess.com"]

[Event "Titled Tuesday Blitz October 25 Late 2022"]
[White "Vargas, Mauricio"]
[Black "Wiegmann, Sascha"]
[WhiteFideId "4404572"]
[BlackFideId "4682041"]
[WhiteElo "2025"]
[BlackElo "2289"]
[Result "0-1"]
[Round "04"]
[TimeControl "180+1"]
[Date "2022.10.26"]
[WhiteClock "0:00:35"]
[BlackClock "0:00:35"]

1. e4 {[%clk 0:03:00]}  c5 {[%clk 0:02:57]} 2. f4 {[%clk 0:02:59]}  Nc6 {[%clk 0:02:54]} 3. Nc3 {[%clk 0:03:00]}  e6 {[%clk 0:02:53]} 4. Nf3 {[%clk 0:03:00]}  d5 {[%clk 0:02:53]} 5. e5 {[%clk 0:03:00]}  Bd7 {[%clk 0:02:37]} 6. g4 {[%clk 0:02:56]}  h5 {[%clk 0:02:35]} 7. g5 {[%clk 0:02:56]}  g6 {[%clk 0:02:33]} 8. Bg2 {[%clk 0:02:56]}  Nge7 {[%clk 0:02:32]} 9. O-O {[%clk 0:02:51]}  Nf5 {[%clk 0:02:29]} 10. Ne2 {[%clk 0:02:51]}  d4 {[%clk 0:02:21]} 11. d3 {[%clk 0:02:49]}  Be7 {[%clk 0:02:17]} 12. Ng3 {[%clk 0:02:49]}  O-O {[%clk 0:02:15]} 13. Ne4 {[%clk 0:02:42]}  b5 {[%clk 0:02:09]} 14. Nf6+ {[%clk 0:02:39]}  Bxf6 {[%clk 0:02:09]} 15. gxf6 {[%clk 0:02:40]}  Nb4 {[%clk 0:01:47]} 16. a3 {[%clk 0:02:40]}  Nd5 {[%clk 0:01:46]} 17. Qe1 {[%clk 0:02:37]}  Bc6 {[%clk 0:01:32]} 18. Nh4 {[%clk 0:02:34]}  Qd7 {[%clk 0:01:08]} 19. Nxf5 {[%clk 0:02:33]}  exf5 {[%clk 0:01:09]} 20. Qh4 {[%clk 0:02:31]}  Nc7 {[%clk 0:01:05]} 21. Qg5 {[%clk 0:02:29]}  Bxg2 {[%clk 0:00:59]} 22. Kxg2 {[%clk 0:02:27]}  Ne6 {[%clk 0:00:58]} 23. Qh6 {[%clk 0:02:26]}  Rfc8 {[%clk 0:00:54]} 24. Bd2 {[%clk 0:02:12]}  c4 {[%clk 0:00:54]} 25. Bb4 {[%clk 0:02:06]}  cxd3 {[%clk 0:00:53]} 26. cxd3 {[%clk 0:01:59]}  Rc2+ {[%clk 0:00:53]} 27. Rf2 {[%clk 0:01:59]}  Qd5+ {[%clk 0:00:41]} 28. Kg3 {[%clk 0:01:41]}  Rxf2 {[%clk 0:00:42]} 29. Kxf2 {[%clk 0:01:40]}  Rc8 {[%clk 0:00:42]} 30. Re1 {[%clk 0:01:30]}  Rc2+ {[%clk 0:00:36]} 31. Re2 {[%clk 0:01:29]}  Rxe2+ {[%clk 0:00:36]} 32. Kxe2 {[%clk 0:01:29]}  Qg2+ {[%clk 0:00:36]} 33. Kd1 {[%clk 0:01:28]}  Qh1+ {[%clk 0:00:30]} 34. Kc2 {[%clk 0:01:08]}  Qxh2+ {[%clk 0:00:30]} 35. Kb3 {[%clk 0:01:08]}  Qxf4 {[%clk 0:00:31]} 36. Bf8 {[%clk 0:00:46]}  Qxh6 {[%clk 0:00:30]} 37. Bxh6 {[%clk 0:00:46]}  h4 {[%clk 0:00:30]} 38. Bd2 {[%clk 0:00:41]}  h3 {[%clk 0:00:30]} 39. Be1 {[%clk 0:00:42]}  h2 {[%clk 0:00:30]} 40. Kb4 {[%clk 0:00:40]}  h1=Q {[%clk 0:00:31]} 41. Kxb5 {[%clk 0:00:41]}  Qd5+ {[%clk 0:00:31]} 42. Ka6 {[%clk 0:00:40]}  Qxe5 {[%clk 0:00:32]} 43. Kxa7 {[%clk 0:00:40]}  Qxe1 {[%clk 0:00:32]} 44. b4 {[%clk 0:00:38]}  Qe2 {[%clk 0:00:33]} 45. a4 {[%clk 0:00:37]}  Qxd3 {[%clk 0:00:34]} 46. b5 {[%clk 0:00:37]}  Nc5 {[%clk 0:00:34]} 47. a5 {[%clk 0:00:36]}  Qxb5 {[%clk 0:00:34]} 48. a6 {[%clk 0:00:35]}  Qxa6+ {[%clk 0:00:34]} 49. Kb8 {[%clk 0:00:35]}  Qb7# {[%clk 0:00:35]} 0-1


[Site "https://www.chess.com"]

[Event "Titled Tuesday Blitz October 25 Late 2022"]
[White "Vlassov, Nikolai"]
[Black "Sanchez, Robert"]
[WhiteFideId "4103360"]
[BlackFideId "2034360"]
[WhiteElo "2324"]
[BlackElo "2394"]
[Result "0-1"]
[Round "04"]
[TimeControl "180+1"]
[Date "2022.10.26"]
[WhiteClock "0:01:08"]
[BlackClock "0:00:47"]

1. e4 {[%clk 0:03:00]}  c5 {[%clk 0:02:54]} 2. c3 {[%clk 0:03:00]}  e6 {[%clk 0:02:51]} 3. d4 {[%clk 0:02:58]}  d5 {[%clk 0:02:51]} 4. e5 {[%clk 0:02:59]}  Nc6 {[%clk 0:02:51]} 5. Nf3 {[%clk 0:02:59]}  Bd7 {[%clk 0:02:51]} 6. a3 {[%clk 0:02:59]}  f6 {[%clk 0:02:51]} 7. Bd3 {[%clk 0:02:57]}  Qc7 {[%clk 0:02:48]} 8. O-O {[%clk 0:02:53]}  O-O-O {[%clk 0:02:44]} 9. Bf4 {[%clk 0:02:51]}  f5 {[%clk 0:02:43]} 10. b4 {[%clk 0:02:46]}  c4 {[%clk 0:02:43]} 11. Bc2 {[%clk 0:02:44]}  h6 {[%clk 0:02:44]} 12. h4 {[%clk 0:02:44]}  Be8 {[%clk 0:02:34]} 13. Ne1 {[%clk 0:02:38]}  Be7 {[%clk 0:02:26]} 14. g3 {[%clk 0:02:28]}  g5 {[%clk 0:02:24]} 15. hxg5 {[%clk 0:02:28]}  hxg5 {[%clk 0:02:25]} 16. Bc1 {[%clk 0:02:25]}  Bh5 {[%clk 0:02:18]} 17. Qd2 {[%clk 0:02:24]}  Nh6 {[%clk 0:01:58]} 18. Kg2 {[%clk 0:02:20]}  Rdg8 {[%clk 0:01:55]} 19. Rh1 {[%clk 0:02:16]}  Nf7 {[%clk 0:01:55]} 20. f3 {[%clk 0:02:12]}  Bg6 {[%clk 0:01:50]} 21. Rxh8 {[%clk 0:02:09]}  Rxh8 {[%clk 0:01:49]} 22. Qf2 {[%clk 0:02:06]}  Qd8 {[%clk 0:01:46]} 23. Ba4 {[%clk 0:02:02]}  Qg8 {[%clk 0:01:44]} 24. Bxc6 {[%clk 0:01:59]}  bxc6 {[%clk 0:01:40]} 25. Qg1 {[%clk 0:01:47]}  Qh7 {[%clk 0:01:33]} 26. Kf1 {[%clk 0:01:44]}  f4 {[%clk 0:01:24]} 27. g4 {[%clk 0:01:41]}  Bxb1 {[%clk 0:01:23]} 28. Ng2 {[%clk 0:01:31]}  Qd3+ {[%clk 0:01:17]} 29. Kf2 {[%clk 0:01:28]}  Rh3 {[%clk 0:01:05]} 30. Ne1 {[%clk 0:01:23]}  Qh7 {[%clk 0:01:03]} 31. Bd2 {[%clk 0:01:15]}  Bd3 {[%clk 0:00:58]} 32. Ng2 {[%clk 0:01:10]}  Rxf3+ {[%clk 0:00:47]} 33. Kxf3 {[%clk 0:01:10]}  Qe4+ {[%clk 0:00:46]} 34. Kf2 {[%clk 0:01:08]}  Qe2# {[%clk 0:00:47]} 0-1


[Site "https://www.chess.com"]

[Event "Titled Tuesday Blitz October 25 Late 2022"]
[White "Wieczorek, Zbigniew"]
[Black "Bayo Milagro, Alvaro"]
[WhiteFideId "1102001"]
[BlackFideId "22275240"]
[WhiteElo "2362"]
[BlackElo "2270"]
[Result "0-1"]
[Round "04"]
[TimeControl "180+1"]
[Date "2022.10.26"]
[WhiteClock "0:00:01"]
[BlackClock "0:00:20"]

1. Nf3 {[%clk 0:02:59]}  Nf6 {[%clk 0:03:00]} 2. c4 {[%clk 0:02:59]}  g6 {[%clk 0:02:59]} 3. Nc3 {[%clk 0:02:58]}  Bg7 {[%clk 0:02:59]} 4. e4 {[%clk 0:02:59]}  d6 {[%clk 0:02:59]} 5. d4 {[%clk 0:02:59]}  O-O {[%clk 0:03:00]} 6. Be2 {[%clk 0:03:00]}  Bg4 {[%clk 0:03:00]} 7. Be3 {[%clk 0:02:57]}  Nfd7 {[%clk 0:03:00]} 8. Nd2 {[%clk 0:02:41]}  Bxe2 {[%clk 0:02:59]} 9. Qxe2 {[%clk 0:02:41]}  Nc6 {[%clk 0:03:00]} 10. Nf3 {[%clk 0:02:38]}  e5 {[%clk 0:03:00]} 11. Rd1 {[%clk 0:02:34]}  exd4 {[%clk 0:03:00]} 12. Nxd4 {[%clk 0:02:34]}  Re8 {[%clk 0:02:52]} 13. Nxc6 {[%clk 0:01:52]}  bxc6 {[%clk 0:02:50]} 14. Bd4 {[%clk 0:01:26]}  Bxd4 {[%clk 0:02:45]} 15. Rxd4 {[%clk 0:01:26]}  Rb8 {[%clk 0:02:46]} 16. O-O {[%clk 0:01:23]}  Qf6 {[%clk 0:02:45]} 17. Rfd1 {[%clk 0:01:17]}  Nc5 {[%clk 0:02:39]} 18. f3 {[%clk 0:01:12]}  Ne6 {[%clk 0:02:36]} 19. R4d2 {[%clk 0:01:07]}  Nf4 {[%clk 0:02:36]} 20. Qf1 {[%clk 0:01:03]}  Kg7 {[%clk 0:02:28]} 21. Kh1 {[%clk 0:01:03]}  h5 {[%clk 0:02:28]} 22. g3 {[%clk 0:01:02]}  Ne6 {[%clk 0:02:28]} 23. f4 {[%clk 0:00:50]}  h4 {[%clk 0:02:28]} 24. Kg2 {[%clk 0:00:28]}  hxg3 {[%clk 0:02:24]} 25. hxg3 {[%clk 0:00:29]}  Rh8 {[%clk 0:02:24]} 26. Qf3 {[%clk 0:00:28]}  Nc5 {[%clk 0:02:16]} 27. Qe3 {[%clk 0:00:21]}  Qe6 {[%clk 0:02:09]} 28. b3 {[%clk 0:00:20]}  Qh3+ {[%clk 0:02:08]} 29. Kf3 {[%clk 0:00:21]}  Rbe8 {[%clk 0:01:56]} 30. Qd4+ {[%clk 0:00:20]}  f6 {[%clk 0:01:50]} 31. b4 {[%clk 0:00:19]}  Ne6 {[%clk 0:01:49]} 32. Qe3 {[%clk 0:00:18]}  g5 {[%clk 0:01:43]} 33. f5 {[%clk 0:00:16]}  g4+ {[%clk 0:01:43]} 34. Kf2 {[%clk 0:00:16]}  Ng5 {[%clk 0:01:37]} 35. Ke2 {[%clk 0:00:13]}  Nf3 {[%clk 0:01:30]} 36. Kd3 {[%clk 0:00:12]}  Ne5+ {[%clk 0:01:22]} 37. Kd4 {[%clk 0:00:12]}  Nf3+ {[%clk 0:01:19]} 38. Kd3 {[%clk 0:00:12]}  Qxg3 {[%clk 0:01:19]} 39. Kc2 {[%clk 0:00:11]}  Rh2 {[%clk 0:01:08]} 40. Rxh2 {[%clk 0:00:10]}  Qxh2+ {[%clk 0:01:09]} 41. Kb3 {[%clk 0:00:11]}  a5 {[%clk 0:01:03]} 42. b5 {[%clk 0:00:10]}  c5 {[%clk 0:01:01]} 43. Nd5 {[%clk 0:00:09]}  Nd4+ {[%clk 0:01:01]} 44. Rxd4 {[%clk 0:00:09]}  cxd4 {[%clk 0:01:01]} 45. Qxd4 {[%clk 0:00:09]}  Qe5 {[%clk 0:01:00]} 46. Qg1 {[%clk 0:00:09]}  Qxe4 {[%clk 0:00:59]} 47. Nxc7 {[%clk 0:00:08]}  Qe3+ {[%clk 0:01:00]} 48. Qxe3 {[%clk 0:00:07]}  Rxe3+ {[%clk 0:01:00]} 49. Ka4 {[%clk 0:00:07]}  g3 {[%clk 0:01:01]} 50. b6 {[%clk 0:00:07]}  g2 {[%clk 0:00:56]} 51. b7 {[%clk 0:00:08]}  g1=Q {[%clk 0:00:56]} 52. b8=Q {[%clk 0:00:08]}  Qd1+ {[%clk 0:00:55]} 53. Kxa5 {[%clk 0:00:08]}  Ra3+ {[%clk 0:00:55]} 54. Kb6 {[%clk 0:00:09]}  Qd4+ {[%clk 0:00:49]} 55. Kb7 {[%clk 0:00:09]}  Qxc4 {[%clk 0:00:40]} 56. Ne6+ {[%clk 0:00:08]}  Kh7 {[%clk 0:00:37]} 57. Nf8+ {[%clk 0:00:06]}  Kh6 {[%clk 0:00:37]} 58. Qxd6 {[%clk 0:00:05]}  Qf7+ {[%clk 0:00:33]} 59. Nd7 {[%clk 0:00:04]}  Rxa2 {[%clk 0:00:31]} 60. Kc7 {[%clk 0:00:03]}  Rc2+ {[%clk 0:00:27]} 61. Kb6 {[%clk 0:00:03]}  Kg5 {[%clk 0:00:27]} 62. Nc5 {[%clk 0:00:02]}  Rb2+ {[%clk 0:00:22]} 63. Kc6 {[%clk 0:00:02]}  Kxf5 {[%clk 0:00:20]} 64. Qd3+ {[%clk 0:00:01]}  Kg5 {[%clk 0:00:20]} 65. Qe3+ {[%clk 0:00:01]}  Kg6 {[%clk 0:00:20]} 66. Qg3+ {[%clk 0:00:01]}  Kh7 {[%clk 0:00:19]} 67. Qh3+ {[%clk 0:00:01]}  Kg7 {[%clk 0:00:20]} 68. Qg3+ {[%clk 0:00:01]}  Qg6 {[%clk 0:00:20]} 0-1


[Site "https://www.chess.com"]

[Event "Titled Tuesday Blitz October 25 Late 2022"]
[White "Yanayt, Eugene"]
[Black "Castellanos Gomez, Alejandro"]
[WhiteFideId "2020165"]
[BlackFideId "22284141"]
[WhiteElo "2046"]
[BlackElo "2168"]
[Result "0-1"]
[Round "04"]
[TimeControl "180+1"]
[Date "2022.10.26"]
[WhiteClock "0:00:13"]
[BlackClock "0:00:20"]

1. c4 {[%clk 0:03:00]}  e6 {[%clk 0:02:54]} 2. g3 {[%clk 0:02:59]}  d5 {[%clk 0:02:55]} 3. Bg2 {[%clk 0:02:59]}  Nf6 {[%clk 0:02:55]} 4. Nf3 {[%clk 0:02:59]}  Be7 {[%clk 0:02:56]} 5. O-O {[%clk 0:02:59]}  O-O {[%clk 0:02:56]} 6. d4 {[%clk 0:02:59]}  dxc4 {[%clk 0:02:55]} 7. Na3 {[%clk 0:02:59]}  Bxa3 {[%clk 0:02:52]} 8. bxa3 {[%clk 0:02:59]}  b5 {[%clk 0:02:43]} 9. Ne5 {[%clk 0:02:55]}  Nd5 {[%clk 0:02:43]} 10. a4 {[%clk 0:02:55]}  a6 {[%clk 0:02:40]} 11. Ba3 {[%clk 0:02:20]}  Re8 {[%clk 0:02:22]} 12. e4 {[%clk 0:02:19]}  Nc3 {[%clk 0:02:19]} 13. Qh5 {[%clk 0:02:17]}  Qf6 {[%clk 0:01:58]} 14. Nxc4 {[%clk 0:02:03]}  Qxd4 {[%clk 0:01:34]} 15. Ne3 {[%clk 0:01:08]}  Bb7 {[%clk 0:01:16]} 16. Bc5 {[%clk 0:01:01]}  Qd8 {[%clk 0:01:02]} 17. axb5 {[%clk 0:00:47]}  axb5 {[%clk 0:00:59]} 18. f3 {[%clk 0:00:28]}  Nd7 {[%clk 0:00:52]} 19. Ng4 {[%clk 0:00:27]}  g6 {[%clk 0:00:35]} 20. Nh6+ {[%clk 0:00:20]}  Kg7 {[%clk 0:00:35]} 21. Qh3 {[%clk 0:00:17]}  Nxc5 {[%clk 0:00:33]} 22. Rae1 {[%clk 0:00:15]}  Qd2 {[%clk 0:00:24]} 23. Ng4 {[%clk 0:00:15]}  h5 {[%clk 0:00:24]} 24. Ne3 {[%clk 0:00:14]}  Ne2+ {[%clk 0:00:22]} 25. Kf2 {[%clk 0:00:13]}  Nd3# {[%clk 0:00:20]} 0-1


[Site "https://www.chess.com"]

[Event "Titled Tuesday Blitz October 25 Late 2022"]
[White "Zhigalko, Sergei"]
[Black "Ozsakallioglu, Okan"]
[WhiteFideId "13502956"]
[BlackFideId "6367011"]
[WhiteElo "2662"]
[BlackElo "2078"]
[Result "1-0"]
[Round "04"]
[TimeControl "180+1"]
[Date "2022.10.26"]
[WhiteClock "0:01:08"]
[BlackClock "0:00:43"]

1. e4 {[%clk 0:03:00]}  c5 {[%clk 0:02:54]} 2. Nf3 {[%clk 0:03:00]}  e6 {[%clk 0:02:53]} 3. c3 {[%clk 0:02:59]}  Nf6 {[%clk 0:02:53]} 4. e5 {[%clk 0:02:59]}  Nd5 {[%clk 0:02:53]} 5. Bc4 {[%clk 0:03:00]}  Nb6 {[%clk 0:02:52]} 6. Bb3 {[%clk 0:03:00]}  Nc6 {[%clk 0:02:46]} 7. d4 {[%clk 0:03:00]}  cxd4 {[%clk 0:02:47]} 8. cxd4 {[%clk 0:03:01]}  d6 {[%clk 0:02:47]} 9. exd6 {[%clk 0:03:02]}  Bxd6 {[%clk 0:02:47]} 10. Nc3 {[%clk 0:03:03]}  O-O {[%clk 0:02:46]} 11. O-O {[%clk 0:03:03]}  Nb4 {[%clk 0:02:39]} 12. Re1 {[%clk 0:02:57]}  Be7 {[%clk 0:02:37]} 13. Ne5 {[%clk 0:02:52]}  Bf6 {[%clk 0:02:37]} 14. Bf4 {[%clk 0:02:49]}  N4d5 {[%clk 0:02:37]} 15. Bg3 {[%clk 0:02:49]}  a5 {[%clk 0:02:35]} 16. Ne4 {[%clk 0:02:41]}  a4 {[%clk 0:02:34]} 17. Bc2 {[%clk 0:02:41]}  g6 {[%clk 0:02:30]} 18. Nxf6+ {[%clk 0:02:34]}  Qxf6 {[%clk 0:02:29]} 19. Qd2 {[%clk 0:02:27]}  Qg7 {[%clk 0:02:27]} 20. Rac1 {[%clk 0:02:12]}  f6 {[%clk 0:02:26]} 21. Nd3 {[%clk 0:02:06]}  Nc4 {[%clk 0:02:19]} 22. Qe2 {[%clk 0:02:03]}  b5 {[%clk 0:02:16]} 23. b3 {[%clk 0:01:55]}  axb3 {[%clk 0:02:13]} 24. Bxb3 {[%clk 0:01:55]}  Ncb6 {[%clk 0:01:58]} 25. Nc5 {[%clk 0:01:53]}  Re8 {[%clk 0:01:52]} 26. Qxb5 {[%clk 0:01:51]}  Bd7 {[%clk 0:01:44]} 27. Nxd7 {[%clk 0:01:45]}  Qxd7 {[%clk 0:01:45]} 28. Qxd7 {[%clk 0:01:40]}  Nxd7 {[%clk 0:01:46]} 29. Rc6 {[%clk 0:01:39]}  Kf7 {[%clk 0:01:37]} 30. Rexe6 {[%clk 0:01:37]}  Rxe6 {[%clk 0:01:28]} 31. Bxd5 {[%clk 0:01:37]}  Re8 {[%clk 0:01:08]} 32. Kf1 {[%clk 0:01:25]}  f5 {[%clk 0:00:51]} 33. Be5 {[%clk 0:01:18]}  Re7 {[%clk 0:00:43]} 34. a4 {[%clk 0:01:12]}  Nf8 {[%clk 0:00:43]} 35. a5 {[%clk 0:01:10]}  Ke8 {[%clk 0:00:43]} 36. Rc8+ {[%clk 0:01:08]} 1-0


[Site "https://www.chess.com"]